[Event "*** SCC Grand Prix: Titled Tuesday Blitz"]
[Site "Chess.com"]
[Date "2020.09.29"]
[Round "1"]
[White "pedro_nascimento85"]
[Black "SharapovEvgeny"]
[Result "0-1"]
[WhiteElo "2002"]
[BlackElo "2476"]
[TimeControl "180+1"]
[EndTime "10:07:53 PDT"]
[Termination "SharapovEvgeny won on time"]

1. d4 {[%clk 0:02:56.9]} 1... d5 {[%clk 0:02:58.9]} 2. c4 {[%clk 0:02:49.5]}
2... c6 {[%clk 0:02:58.7]} 3. cxd5 {[%clk 0:02:48.9]} 3... cxd5 {[%clk
0:02:58.1]} 4. Nc3 {[%clk 0:02:48.6]} 4... Nf6 {[%clk 0:02:58]} 5. Bf4 {[%clk
0:02:45.3]} 5... Nc6 {[%clk 0:02:57.2]} 6. e3 {[%clk 0:02:41.8]} 6... a6 {[%clk
0:02:56.3]} 7. Bd3 {[%clk 0:02:36.4]} 7... g6 {[%clk 0:02:55.5]} 8. Nf3 {[%clk
0:02:34]} 8... Bg7 {[%clk 0:02:54.7]} 9. Ne5 {[%clk 0:02:33.5]} 9... Nxe5 {[%clk
0:02:52.8]} 10. Bxe5 {[%clk 0:02:32.7]} 10... O-O {[%clk 0:02:52.3]} 11. O-O
{[%clk 0:02:29.8]} 11... b5 {[%clk 0:02:43.4]} 12. Rc1 {[%clk 0:02:24.4]} 12...
Bb7 {[%clk 0:02:42.5]} 13. Ne2 {[%clk 0:01:50.3]} 13... Rc8 {[%clk 0:02:40.6]}
14. Qb3 {[%clk 0:01:48.9]} 14... Qd7 {[%clk 0:02:36.1]} 15. Nf4 {[%clk
0:01:39.3]} 15... e6 {[%clk 0:02:33.9]} 16. Rc5 {[%clk 0:01:32.2]} 16... Rxc5
{[%clk 0:02:18.5]} 17. dxc5 {[%clk 0:01:31.4]} 17... Rc8 {[%clk 0:02:17.9]} 18.
Rc1 {[%clk 0:01:29.9]} 18... Ne4 {[%clk 0:01:56.6]} 19. Bxg7 {[%clk 0:01:23.9]}
19... Kxg7 {[%clk 0:01:55.9]} 20. Bxe4 {[%clk 0:01:10.6]} 20... dxe4 {[%clk
0:01:54.9]} 21. Qc3+ {[%clk 0:01:08.4]} 21... f6 {[%clk 0:01:51.5]} 22. b4
{[%clk 0:01:08.4]} 22... e5 {[%clk 0:01:50.5]} 23. Ne2 {[%clk 0:01:06.7]} 23...
Bc6 {[%clk 0:01:47]} 24. Ng3 {[%clk 0:00:57.1]} 24... Rd8 {[%clk 0:01:45.1]} 25.
h3 {[%clk 0:00:55.2]} 25... h5 {[%clk 0:01:44]} 26. Qc2 {[%clk 0:00:40.3]} 26...
f5 {[%clk 0:01:40]} 27. Qb2 {[%clk 0:00:36.1]} 27... Qd5 {[%clk 0:01:37.4]} 28.
Ne2 {[%clk 0:00:33.9]} 28... Kh7 {[%clk 0:01:32.3]} 29. Nc3 {[%clk 0:00:31.3]}
29... Qd2 {[%clk 0:01:28.4]} 30. Qxd2 {[%clk 0:00:28.7]} 30... Rxd2 {[%clk
0:01:27.3]} 31. Rd1 {[%clk 0:00:29.1]} 31... Rc2 {[%clk 0:01:24.2]} 32. Nd5
{[%clk 0:00:25.2]} 32... a5 {[%clk 0:00:54.9]} 33. a3 {[%clk 0:00:20.6]} 33...
axb4 {[%clk 0:00:51.3]} 34. Nxb4 {[%clk 0:00:18.2]} 34... Rxc5 {[%clk
0:00:49.7]} 35. Nxc6 {[%clk 0:00:17.3]} 35... Rxc6 {[%clk 0:00:49.1]} 36. Rd5
{[%clk 0:00:17.8]} 36... Rc1+ {[%clk 0:00:39.1]} 37. Kh2 {[%clk 0:00:17.6]}
37... h4 {[%clk 0:00:33.9]} 38. Rxe5 {[%clk 0:00:15.4]} 38... Rf1 {[%clk
0:00:33.4]} 39. Rxb5 {[%clk 0:00:12.9]} 39... Rxf2 {[%clk 0:00:32.8]} 40. a4
{[%clk 0:00:13.2]} 40... Ra2 {[%clk 0:00:31.6]} 41. a5 {[%clk 0:00:12.7]} 41...
Ra3 {[%clk 0:00:31.3]} 42. Re5 {[%clk 0:00:05.5]} 42... Rxe3 {[%clk 0:00:30.2]}
43. a6 {[%clk 0:00:05.4]} 43... Ra3 {[%clk 0:00:29.7]} 44. Re6 {[%clk
0:00:05.5]} 44... Kg7 {[%clk 0:00:27.5]} 45. Kg1 {[%clk 0:00:05.4]} 45... Kf7
{[%clk 0:00:26.3]} 46. Rb6 {[%clk 0:00:05.3]} 46... e3 {[%clk 0:00:23.3]} 47.
Kf1 {[%clk 0:00:05.6]} 47... Ra2 {[%clk 0:00:23]} 48. Rb7+ {[%clk 0:00:04.6]}
48... Kf6 {[%clk 0:00:22.6]} 49. a7 {[%clk 0:00:05]} 49... f4 {[%clk 0:00:22.3]}
50. Ke1 {[%clk 0:00:02.6]} 50... g5 {[%clk 0:00:21.8]} 51. Kf1 {[%clk
0:00:02.3]} 51... Kf5 {[%clk 0:00:20.3]} 52. Rf7+ {[%clk 0:00:01.6]} 52... Kg6
{[%clk 0:00:20]} 0-1

[Event "*** SCC Grand Prix: Titled Tuesday Blitz"]
[Site "Chess.com"]
[Date "2020.09.29"]
[Round "1"]
[White "MVM2008"]
[Black "Lion-Al-Messi"]
[Result "0-1"]
[WhiteElo "2190"]
[BlackElo "2526"]
[TimeControl "180+1"]
[EndTime "10:07:54 PDT"]
[Termination "Lion-Al-Messi won on time"]

1. e4 {[%clk 0:03:00.9]} 1... e6 {[%clk 0:02:59.9]} 2. d4 {[%clk 0:02:59.6]}
2... d5 {[%clk 0:03:00.4]} 3. Nd2 {[%clk 0:02:59.7]} 3... c5 {[%clk 0:03:00]} 4.
exd5 {[%clk 0:02:59.6]} 4... Qxd5 {[%clk 0:03:00.9]} 5. dxc5 {[%clk 0:03:00.4]}
5... Bxc5 {[%clk 0:03:00.7]} 6. Ngf3 {[%clk 0:03:00.4]} 6... Nf6 {[%clk
0:03:01]} 7. Bc4 {[%clk 0:02:57.4]} 7... Qh5 {[%clk 0:03:00.5]} 8. O-O {[%clk
0:02:48]} 8... O-O {[%clk 0:03:00.2]} 9. b3 {[%clk 0:02:43.5]} 9... Nc6 {[%clk
0:02:56.3]} 10. Bb2 {[%clk 0:02:43.1]} 10... e5 {[%clk 0:02:56.2]} 11. Nxe5
{[%clk 0:02:25.4]} 11... Nxe5 {[%clk 0:02:31.9]} 12. Qxh5 {[%clk 0:02:25.1]}
12... Nxh5 {[%clk 0:02:28.8]} 13. Bxe5 {[%clk 0:02:25.2]} 13... Bf5 {[%clk
0:02:26.8]} 14. Bd3 {[%clk 0:02:14]} 14... Bxd3 {[%clk 0:02:22.9]} 15. cxd3
{[%clk 0:02:14.9]} 15... Rad8 {[%clk 0:02:23]} 16. Ne4 {[%clk 0:02:08.3]} 16...
Bb6 {[%clk 0:02:18.3]} 17. g4 {[%clk 0:02:05.8]} 17... Rfe8 {[%clk 0:01:40.3]}
18. d4 {[%clk 0:00:44]} 18... Bxd4 {[%clk 0:01:34.8]} 19. Bxd4 {[%clk
0:00:26.3]} 19... Rxe4 {[%clk 0:01:33.6]} 20. gxh5 {[%clk 0:00:20.6]} 20...
Rdxd4 {[%clk 0:01:27.2]} 21. Rac1 {[%clk 0:00:20.8]} 21... h6 {[%clk 0:01:25.4]}
22. Rc7 {[%clk 0:00:20.4]} 22... Rg4+ {[%clk 0:01:19.6]} 23. Kh1 {[%clk
0:00:20.5]} 23... Rg5 {[%clk 0:00:57.8]} 24. f4 {[%clk 0:00:16.5]} 24... Rxh5
{[%clk 0:00:54.5]} 25. Rf2 {[%clk 0:00:16]} 25... Rh4 {[%clk 0:00:49.3]} 26.
Rxb7 {[%clk 0:00:15.1]} 26... Rg4 {[%clk 0:00:48.1]} 27. Rf1 {[%clk 0:00:12.2]}
27... a5 {[%clk 0:00:40.4]} 28. Rc7 {[%clk 0:00:02.2]} 28... Rd2 {[%clk
0:00:33.5]} 29. Rc3 {[%clk 0:00:01.7]} 29... Rgg2 {[%clk 0:00:29.4]} 30. Rh3
{[%clk 0:00:01.7]} 30... Rxa2 {[%clk 0:00:28.2]} 31. Rg1 {[%clk 0:00:02.6]}
31... Rxg1+ {[%clk 0:00:23.3]} 32. Kxg1 {[%clk 0:00:03.5]} 32... Ra3 {[%clk
0:00:23]} 33. Rc3 {[%clk 0:00:03]} 33... Kh7 {[%clk 0:00:19.7]} 34. Rc7 {[%clk
0:00:02.8]} 34... Kg6 {[%clk 0:00:19.3]} 35. Ra7 {[%clk 0:00:02.3]} 35... Rxb3
{[%clk 0:00:13.6]} 36. Rxa5 {[%clk 0:00:02]} 36... Rf3 {[%clk 0:00:13.5]} 37.
Ra4 {[%clk 0:00:01.6]} 37... Kf5 {[%clk 0:00:13.7]} 38. Kg2 {[%clk 0:00:02.2]}
38... Rxf4 {[%clk 0:00:13.4]} 39. Ra5+ {[%clk 0:00:02.9]} 39... Kg6 {[%clk
0:00:13.3]} 40. Ra6+ {[%clk 0:00:03.5]} 40... Rf6 {[%clk 0:00:13.5]} 41. Ra5
{[%clk 0:00:03.5]} 41... h5 {[%clk 0:00:13.9]} 42. Kg3 {[%clk 0:00:03.4]} 42...
Kh6 {[%clk 0:00:14.2]} 43. h4 {[%clk 0:00:02.8]} 43... Rg6+ {[%clk 0:00:13.9]}
44. Kh3 {[%clk 0:00:02]} 44... Rg4 {[%clk 0:00:14.8]} 45. Ra6+ {[%clk 0:00:02]}
45... f6 {[%clk 0:00:15.1]} 46. Ra8 {[%clk 0:00:02.1]} 46... Rb4 {[%clk
0:00:13.6]} 47. Rh8+ {[%clk 0:00:01.7]} 47... Kg6 {[%clk 0:00:13.9]} 48. Ra8
{[%clk 0:00:01.4]} 48... Rb3+ {[%clk 0:00:14.2]} 49. Kg2 {[%clk 0:00:01.9]}
49... Re3 {[%clk 0:00:12.2]} 0-1

[Event "*** SCC Grand Prix: Titled Tuesday Blitz"]
[Site "Chess.com"]
[Date "2020.09.29"]
[Round "1"]
[White "anon481216"]
[Black "FairChess_on_YouTube"]
[Result "0-1"]
[WhiteElo "2442"]
[BlackElo "2937"]
[TimeControl "180+1"]
[EndTime "10:07:59 PDT"]
[Termination "FairChess_on_YouTube won by resignation"]

1. d4 {[%clk 0:03:00]} 1... Nf6 {[%clk 0:02:58]} 2. c4 {[%clk 0:02:58.9]} 2...
e6 {[%clk 0:02:56.4]} 3. Nf3 {[%clk 0:02:57.6]} 3... a6 {[%clk 0:02:54.5]} 4.
Nc3 {[%clk 0:02:54.5]} 4... d5 {[%clk 0:02:53.7]} 5. cxd5 {[%clk 0:02:54.6]}
5... exd5 {[%clk 0:02:52.7]} 6. Bg5 {[%clk 0:02:54.3]} 6... Be6 {[%clk
0:02:51.4]} 7. e3 {[%clk 0:02:52.3]} 7... Nbd7 {[%clk 0:02:50.8]} 8. Bd3 {[%clk
0:02:50.6]} 8... h6 {[%clk 0:02:44.8]} 9. Bh4 {[%clk 0:02:50.3]} 9... Bd6 {[%clk
0:02:43.5]} 10. Bg3 {[%clk 0:02:48.9]} 10... Bxg3 {[%clk 0:02:40.1]} 11. hxg3
{[%clk 0:02:48.7]} 11... c6 {[%clk 0:02:36.8]} 12. O-O {[%clk 0:02:47.2]} 12...
Bg4 {[%clk 0:02:33]} 13. Rc1 {[%clk 0:02:46.6]} 13... O-O {[%clk 0:02:27.5]} 14.
Na4 {[%clk 0:02:38.2]} 14... Ne4 {[%clk 0:02:24.1]} 15. Qc2 {[%clk 0:02:29.5]}
15... Re8 {[%clk 0:02:13.9]} 16. Nc5 {[%clk 0:02:23.7]} 16... Nexc5 {[%clk
0:02:04.9]} 17. dxc5 {[%clk 0:02:23.5]} 17... Bxf3 {[%clk 0:02:05.1]} 18. gxf3
{[%clk 0:02:23.6]} 18... Ne5 {[%clk 0:02:01.6]} 19. Be2 {[%clk 0:02:21.5]} 19...
h5 {[%clk 0:01:53]} 20. Kg2 {[%clk 0:02:20.3]} 20... Qf6 {[%clk 0:01:44.7]} 21.
Rh1 {[%clk 0:02:17.6]} 21... g6 {[%clk 0:01:44.5]} 22. Qc3 {[%clk 0:02:12.8]}
22... Kg7 {[%clk 0:01:35.4]} 23. Qd4 {[%clk 0:02:11.3]} 23... Nd7 {[%clk
0:01:30.5]} 24. Qxf6+ {[%clk 0:02:00.8]} 24... Kxf6 {[%clk 0:01:30.2]} 25. Bd3
{[%clk 0:01:55.8]} 25... a5 {[%clk 0:01:27.3]} 26. f4 {[%clk 0:01:52.9]} 26...
a4 {[%clk 0:01:26.7]} 27. Rc3 {[%clk 0:01:48.1]} 27... Ra5 {[%clk 0:01:26.1]}
28. Rhc1 {[%clk 0:01:47.9]} 28... Rea8 {[%clk 0:01:12.8]} 29. Kf3 {[%clk
0:01:45.9]} 29... Nf8 {[%clk 0:01:11.1]} 30. Bf1 {[%clk 0:01:12.8]} 30... Ne6
{[%clk 0:01:06.8]} 31. Bh3 {[%clk 0:01:12]} 31... Nc7 {[%clk 0:01:06.5]} 32. a3
{[%clk 0:01:06.9]} 32... Rb5 {[%clk 0:01:00]} 33. R1c2 {[%clk 0:01:06.6]} 33...
Rh8 {[%clk 0:00:53.8]} 34. Bf1 {[%clk 0:01:04]} 34... Ra5 {[%clk 0:00:54]} 35.
Ke2 {[%clk 0:00:59.2]} 35... h4 {[%clk 0:00:43.1]} 36. g4 {[%clk 0:00:58.8]}
36... h3 {[%clk 0:00:41.4]} 37. Rc1 {[%clk 0:00:57]} 37... Rb5 {[%clk
0:00:38.7]} 38. R3c2 {[%clk 0:00:54.6]} 38... Rb3 {[%clk 0:00:38.5]} 39. Kf3
{[%clk 0:00:50.3]} 39... Ne6 {[%clk 0:00:33]} 40. Kg3 {[%clk 0:00:48.3]} 40...
h2 {[%clk 0:00:33]} 41. Bh3 {[%clk 0:00:44]} 41... d4 {[%clk 0:00:27.3]} 42. g5+
{[%clk 0:00:28.9]} 42... Ke7 {[%clk 0:00:26.5]} 43. Re2 {[%clk 0:00:20.3]} 43...
dxe3 {[%clk 0:00:19.7]} 44. Rxe3 {[%clk 0:00:19.9]} 44... Rxb2 {[%clk 0:00:17]}
45. Kxh2 {[%clk 0:00:17.4]} 45... Rxf2+ {[%clk 0:00:15.7]} 46. Kg3 {[%clk
0:00:17.5]} 46... Rb2 {[%clk 0:00:14.4]} 47. Rce1 {[%clk 0:00:16.1]} 47... Rxh3+
{[%clk 0:00:12]} 48. Kxh3 {[%clk 0:00:15.8]} 48... Rc2 {[%clk 0:00:11.8]} 49.
Re5 {[%clk 0:00:13.3]} 49... Kd7 {[%clk 0:00:10.2]} 50. Kg3 {[%clk 0:00:12.7]}
50... Rxc5 {[%clk 0:00:08.2]} 51. Rxc5 {[%clk 0:00:11.7]} 51... Nxc5 {[%clk
0:00:09.1]} 52. f5 {[%clk 0:00:11.5]} 52... b5 {[%clk 0:00:07.2]} 53. Kf4 {[%clk
0:00:11.4]} 53... Nd3+ {[%clk 0:00:06.7]} 0-1

[Event "*** SCC Grand Prix: Titled Tuesday Blitz"]
[Site "Chess.com"]
[Date "2020.09.29"]
[Round "1"]
[White "Agnes66678"]
[Black "dodorox"]
[Result "1-0"]
[WhiteElo "2478"]
[BlackElo "2008"]
[TimeControl "180+1"]
[EndTime "10:08:00 PDT"]
[Termination "Agnes66678 won on time"]

1. e4 {[%clk 0:03:00.7]} 1... e6 {[%clk 0:02:58]} 2. d4 {[%clk 0:03:00.1]} 2...
d5 {[%clk 0:02:55.6]} 3. Nc3 {[%clk 0:02:59.4]} 3... Nf6 {[%clk 0:02:54.6]} 4.
e5 {[%clk 0:02:58.8]} 4... Nfd7 {[%clk 0:02:54]} 5. f4 {[%clk 0:02:59]} 5... c5
{[%clk 0:02:52.7]} 6. Nf3 {[%clk 0:02:59.2]} 6... Nc6 {[%clk 0:02:51.8]} 7. Be3
{[%clk 0:02:59.3]} 7... Qb6 {[%clk 0:02:49.8]} 8. Na4 {[%clk 0:02:57.3]} 8...
Qa5+ {[%clk 0:02:45.2]} 9. c3 {[%clk 0:02:57.1]} 9... c4 {[%clk 0:02:32.6]} 10.
b4 {[%clk 0:02:52.9]} 10... Nxb4 {[%clk 0:02:22.8]} 11. cxb4 {[%clk 0:02:52.2]}
11... Bxb4+ {[%clk 0:02:22.1]} 12. Bd2 {[%clk 0:02:33.6]} 12... Bxd2+ {[%clk
0:02:07]} 13. Nxd2 {[%clk 0:02:34.5]} 13... b5 {[%clk 0:01:57.1]} 14. Nc5 {[%clk
0:02:23.5]} 14... Nxc5 {[%clk 0:01:54.5]} 15. dxc5 {[%clk 0:02:24.4]} 15... Qc7
{[%clk 0:01:38.9]} 16. Nf3 {[%clk 0:02:20.6]} 16... Qxc5 {[%clk 0:01:38.5]} 17.
Qd4 {[%clk 0:02:20.4]} 17... Qxd4 {[%clk 0:01:24.8]} 18. Nxd4 {[%clk 0:02:21.3]}
18... Bd7 {[%clk 0:01:24.7]} 19. Be2 {[%clk 0:02:19]} 19... Ke7 {[%clk
0:01:20.5]} 20. Kd2 {[%clk 0:02:18.8]} 20... a5 {[%clk 0:01:14]} 21. a4 {[%clk
0:02:04.8]} 21... b4 {[%clk 0:01:12.8]} 22. Kc2 {[%clk 0:02:03.6]} 22... Rhb8
{[%clk 0:01:04.7]} 23. g4 {[%clk 0:02:00.8]} 23... b3+ {[%clk 0:00:59.4]} 24.
Kc3 {[%clk 0:01:57.5]} 24... Rb4 {[%clk 0:00:57.7]} 25. Ra3 {[%clk 0:01:55.9]}
25... Rxa4 {[%clk 0:00:51.7]} 26. Rxa4 {[%clk 0:01:51.8]} 26... Bxa4 {[%clk
0:00:51.5]} 27. Ra1 {[%clk 0:01:52.7]} 27... Bd7 {[%clk 0:00:50.8]} 28. f5
{[%clk 0:01:44.5]} 28... g6 {[%clk 0:00:41.9]} 29. fxe6 {[%clk 0:01:37.7]} 29...
fxe6 {[%clk 0:00:39.4]} 30. g5 {[%clk 0:01:37.7]} 30... a4 {[%clk 0:00:36.1]}
31. Kb2 {[%clk 0:01:36]} 31... Rf8 {[%clk 0:00:31.2]} 32. Rf1 {[%clk 0:01:28.7]}
32... Ra8 {[%clk 0:00:17]} 33. Ra1 {[%clk 0:01:22]} 33... Rf8 {[%clk 0:00:16.6]}
34. Kc3 {[%clk 0:01:17.1]} 34... Rf2 {[%clk 0:00:14.6]} 35. h4 {[%clk
0:01:14.8]} 35... Rh2 {[%clk 0:00:12.9]} 36. h5 {[%clk 0:01:13.4]} 36... Rh3+
{[%clk 0:00:12.2]} 37. Kb2 {[%clk 0:01:11.3]} 37... Rh2 {[%clk 0:00:11.9]} 38.
hxg6 {[%clk 0:01:09.2]} 38... hxg6 {[%clk 0:00:11.5]} 39. Rf1 {[%clk 0:01:07.5]}
39... Rh3 {[%clk 0:00:09.1]} 40. Rf3 {[%clk 0:01:04.2]} 40... Rh2 {[%clk
0:00:08.7]} 41. Rf6 {[%clk 0:00:57.9]} 41... Rh4 {[%clk 0:00:07]} 42. Nf3 {[%clk
0:00:45]} 42... Re4 {[%clk 0:00:06.6]} 43. Bd1 {[%clk 0:00:44.4]} 43... Re3
{[%clk 0:00:06.6]} 44. Nh4 {[%clk 0:00:30.5]} 44... c3+ {[%clk 0:00:06.7]} 45.
Ka3 {[%clk 0:00:28.1]} 45... c2 {[%clk 0:00:06.7]} 46. Nxg6+ {[%clk 0:00:28.1]}
46... Kd8 {[%clk 0:00:06.2]} 47. Bxc2 {[%clk 0:00:28]} 47... bxc2+ {[%clk
0:00:05.8]} 48. Kb2 {[%clk 0:00:28.9]} 48... Re2 {[%clk 0:00:05.2]} 49. Rf8+
{[%clk 0:00:22.3]} 49... Kc7 {[%clk 0:00:04.6]} 50. Rf1 {[%clk 0:00:19.9]} 50...
Rd2 {[%clk 0:00:04.4]} 51. Rc1 {[%clk 0:00:19.2]} 51... Rg2 {[%clk 0:00:03.1]}
52. Nf4 {[%clk 0:00:17.3]} 52... Rxg5 {[%clk 0:00:02.2]} 53. Rxc2+ {[%clk
0:00:17.4]} 53... Kd8 {[%clk 0:00:01.2]} 54. Nd3 {[%clk 0:00:17.6]} 1-0

[Event "*** SCC Grand Prix: Titled Tuesday Blitz"]
[Site "Chess.com"]
[Date "2020.09.29"]
[Round "1"]
[White "PauloCesarCosta_sad"]
[Black "Barys1974"]
[Result "0-1"]
[WhiteElo "2300"]
[BlackElo "2621"]
[TimeControl "180+1"]
[EndTime "10:08:03 PDT"]
[Termination "Barys1974 won on time"]

1. Nf3 {[%clk 0:03:00.9]} 1... d5 {[%clk 0:02:59.5]} 2. d4 {[%clk 0:03:00.2]}
2... Nf6 {[%clk 0:02:59.2]} 3. c4 {[%clk 0:03:00.1]} 3... e6 {[%clk 0:02:59.1]}
4. Nc3 {[%clk 0:03:00.4]} 4... Bb4 {[%clk 0:02:56.2]} 5. e3 {[%clk 0:02:56.4]}
5... O-O {[%clk 0:02:54.3]} 6. Bd3 {[%clk 0:02:36]} 6... dxc4 {[%clk 0:02:53.4]}
7. Bxc4 {[%clk 0:02:35.6]} 7... c5 {[%clk 0:02:54]} 8. O-O {[%clk 0:02:34.2]}
8... Nc6 {[%clk 0:02:54.1]} 9. a3 {[%clk 0:02:24]} 9... Ba5 {[%clk 0:02:54.1]}
10. dxc5 {[%clk 0:02:16.8]} 10... Bxc3 {[%clk 0:02:50.2]} 11. bxc3 {[%clk
0:02:16.8]} 11... Qa5 {[%clk 0:02:49.6]} 12. Qb3 {[%clk 0:02:03.8]} 12... Qxc5
{[%clk 0:02:46.7]} 13. Qb5 {[%clk 0:01:58.8]} 13... Qxb5 {[%clk 0:02:37.6]} 14.
Bxb5 {[%clk 0:01:59.7]} 14... Bd7 {[%clk 0:02:37.9]} 15. Rd1 {[%clk 0:01:46]}
15... Rfc8 {[%clk 0:02:31.4]} 16. c4 {[%clk 0:01:45.5]} 16... Be8 {[%clk
0:02:23.8]} 17. Bb2 {[%clk 0:01:39.7]} 17... Ne4 {[%clk 0:02:15.7]} 18. Rab1
{[%clk 0:01:39.7]} 18... Na5 {[%clk 0:01:58]} 19. Bxe8 {[%clk 0:01:28.8]} 19...
Rxe8 {[%clk 0:01:57.9]} 20. Rd4 {[%clk 0:01:29.6]} 20... Nc5 {[%clk 0:01:52.4]}
21. Kf1 {[%clk 0:01:27.9]} 21... Rec8 {[%clk 0:01:44.4]} 22. Bc3 {[%clk
0:01:22.4]} 22... Nc6 {[%clk 0:01:44.5]} 23. Rdd1 {[%clk 0:01:13.9]} 23... Ne4
{[%clk 0:01:42]} 24. Bb4 {[%clk 0:01:07.6]} 24... b6 {[%clk 0:01:35.8]} 25. Rd7
{[%clk 0:01:07.1]} 25... h6 {[%clk 0:01:02.5]} 26. Rbd1 {[%clk 0:01:06.5]} 26...
Nf6 {[%clk 0:00:53.2]} 27. Rb7 {[%clk 0:00:55.5]} 27... Nd8 {[%clk 0:00:44.6]}
28. Re7 {[%clk 0:00:44.6]} 28... a5 {[%clk 0:00:36.4]} 29. Bc3 {[%clk
0:00:31.8]} 29... Rxc4 {[%clk 0:00:23.2]} 30. Bxf6 {[%clk 0:00:25.2]} 30... Nc6
{[%clk 0:00:16.8]} 31. Ne5 {[%clk 0:00:19.4]} 31... gxf6 {[%clk 0:00:15.6]} 32.
Nxc4 {[%clk 0:00:18.1]} 32... Nxe7 {[%clk 0:00:15.8]} 33. Nxb6 {[%clk
0:00:17.8]} 33... Rb8 {[%clk 0:00:15.4]} 34. Nc4 {[%clk 0:00:16.6]} 34... a4
{[%clk 0:00:15.7]} 35. Rd4 {[%clk 0:00:13.6]} 35... Rb3 {[%clk 0:00:13.3]} 36.
g3 {[%clk 0:00:10.9]} 36... Nd5 {[%clk 0:00:13]} 37. Rg4+ {[%clk 0:00:10.3]}
37... Kf8 {[%clk 0:00:12.7]} 38. h4 {[%clk 0:00:10]} 38... h5 {[%clk 0:00:12.5]}
39. Rd4 {[%clk 0:00:09.9]} 39... f5 {[%clk 0:00:12]} 40. Kg2 {[%clk 0:00:09.7]}
40... Ke7 {[%clk 0:00:12.1]} 41. Kf3 {[%clk 0:00:09.8]} 41... Kf6 {[%clk
0:00:11.7]} 42. Kg2 {[%clk 0:00:05.8]} 42... Nc3 {[%clk 0:00:11.8]} 43. Rd3
{[%clk 0:00:04.7]} 43... Ne4 {[%clk 0:00:10.3]} 44. Rd4 {[%clk 0:00:04.7]} 44...
Rc3 {[%clk 0:00:08.7]} 45. Nb6 {[%clk 0:00:04.2]} 45... Rc2 {[%clk 0:00:09]} 46.
Nxa4 {[%clk 0:00:03.9]} 46... Rxf2+ {[%clk 0:00:09.1]} 47. Kg1 {[%clk
0:00:04.4]} 47... Ra2 {[%clk 0:00:08.7]} 48. Nc5 {[%clk 0:00:03.2]} 48... Nxc5
{[%clk 0:00:08.7]} 49. Rc4 {[%clk 0:00:03.3]} 49... Ne4 {[%clk 0:00:08.8]} 50.
a4 {[%clk 0:00:02.4]} 50... Nxg3 {[%clk 0:00:08.9]} 0-1

[Event "*** SCC Grand Prix: Titled Tuesday Blitz"]
[Site "Chess.com"]
[Date "2020.09.29"]
[Round "1"]
[White "GMKrikor"]
[Black "lider34"]
[Result "1-0"]
[WhiteElo "2795"]
[BlackElo "2401"]
[TimeControl "180+1"]
[EndTime "10:08:04 PDT"]
[Termination "GMKrikor won by checkmate"]

1. e4 {[%clk 0:02:55.9]} 1... c6 {[%clk 0:02:58.6]} 2. d4 {[%clk 0:02:55.6]}
2... d5 {[%clk 0:02:59.5]} 3. Nc3 {[%clk 0:02:56.1]} 3... dxe4 {[%clk
0:02:58.6]} 4. Nxe4 {[%clk 0:02:57]} 4... Nf6 {[%clk 0:02:58.7]} 5. Nxf6+ {[%clk
0:02:57.2]} 5... exf6 {[%clk 0:02:59.6]} 6. c3 {[%clk 0:02:57.7]} 6... Bd6
{[%clk 0:02:59]} 7. Bd3 {[%clk 0:02:57.5]} 7... O-O {[%clk 0:02:58.7]} 8. Qc2
{[%clk 0:02:56.8]} 8... Re8+ {[%clk 0:02:58.5]} 9. Ne2 {[%clk 0:02:56.2]} 9...
h5 {[%clk 0:02:58]} 10. O-O {[%clk 0:02:51.6]} 10... h4 {[%clk 0:02:52.5]} 11.
h3 {[%clk 0:02:51.2]} 11... Nd7 {[%clk 0:02:47.6]} 12. Be3 {[%clk 0:02:49.3]}
12... Nf8 {[%clk 0:02:45.9]} 13. Rad1 {[%clk 0:02:48.1]} 13... Be6 {[%clk
0:02:42.8]} 14. c4 {[%clk 0:02:47.4]} 14... Qd7 {[%clk 0:02:39.2]} 15. Nf4
{[%clk 0:02:41.3]} 15... Bxf4 {[%clk 0:02:33.5]} 16. Bxf4 {[%clk 0:02:41.4]}
16... g5 {[%clk 0:02:28.8]} 17. Bh2 {[%clk 0:02:17.2]} 17... g4 {[%clk
0:02:23.8]} 18. d5 {[%clk 0:01:58.9]} 18... cxd5 {[%clk 0:02:21.9]} 19. cxd5
{[%clk 0:01:59.8]} 19... Bxd5 {[%clk 0:02:19.4]} 20. Bf5 {[%clk 0:01:50.5]}
20... Qc6 {[%clk 0:02:12.8]} 21. Qxc6 {[%clk 0:01:48.5]} 21... bxc6 {[%clk
0:02:11]} 22. Bxg4 {[%clk 0:01:44.3]} 22... Bxa2 {[%clk 0:02:10.1]} 23. Rd4
{[%clk 0:01:39]} 23... Bd5 {[%clk 0:02:02.9]} 24. Bf5 {[%clk 0:01:27.2]} 24...
Ng6 {[%clk 0:02:01.1]} 25. Bd3 {[%clk 0:01:01]} 25... Ne5 {[%clk 0:01:40.5]} 26.
Ba6 {[%clk 0:00:57]} 26... Rab8 {[%clk 0:01:30.7]} 27. Rxh4 {[%clk 0:00:35.4]}
27... Rxb2 {[%clk 0:01:29.6]} 28. Bg3 {[%clk 0:00:30.7]} 28... Ra2 {[%clk
0:01:21.3]} 29. Bxe5 {[%clk 0:00:19.4]} 29... fxe5 {[%clk 0:01:12.7]} 30. Bd3
{[%clk 0:00:19.4]} 30... e4 {[%clk 0:01:04.1]} 31. Re1 {[%clk 0:00:18.8]} 31...
f5 {[%clk 0:01:03.3]} 32. Rf4 {[%clk 0:00:13.8]} 32... Be6 {[%clk 0:00:47.8]}
33. Bf1 {[%clk 0:00:11.7]} 33... Rb8 {[%clk 0:00:29.5]} 34. g4 {[%clk
0:00:09.5]} 34... fxg4 {[%clk 0:00:26.9]} 35. Rfxe4 {[%clk 0:00:08.7]} 35... Bd5
{[%clk 0:00:21]} 36. Rxg4+ {[%clk 0:00:08.4]} 36... Kh8 {[%clk 0:00:19.5]} 37.
Re5 {[%clk 0:00:05.8]} 37... Bf7 {[%clk 0:00:17]} 38. Rf5 {[%clk 0:00:05.4]}
38... Rb7 {[%clk 0:00:16]} 39. Bc4 {[%clk 0:00:03.5]} 39... Ra1+ {[%clk
0:00:13.7]} 40. Kh2 {[%clk 0:00:02.8]} 40... Bxc4 {[%clk 0:00:13.7]} 41. Rh4+
{[%clk 0:00:02.9]} 41... Rh7 {[%clk 0:00:12.3]} 42. Rxc4 {[%clk 0:00:03.8]}
42... Ra3 {[%clk 0:00:10.3]} 43. Rxc6 {[%clk 0:00:04]} 43... Raxh3+ {[%clk
0:00:08.4]} 44. Kg2 {[%clk 0:00:04.7]} 44... R3h6 {[%clk 0:00:08.5]} 45. Rc8+
{[%clk 0:00:04.1]} 45... Kg7 {[%clk 0:00:06.9]} 46. Rfc5 {[%clk 0:00:05]} 46...
Kf6 {[%clk 0:00:07.7]} 47. R8c6+ {[%clk 0:00:04.7]} 47... Ke7 {[%clk 0:00:08]}
48. Rxh6 {[%clk 0:00:03.4]} 48... Kd8 {[%clk 0:00:08.9]} 49. Rxh7 {[%clk
0:00:03.1]} 49... a5 {[%clk 0:00:06.8]} 50. Rg5 {[%clk 0:00:04]} 50... a4 {[%clk
0:00:06.2]} 51. Rg8# {[%clk 0:00:04.8]} 1-0